bitfinex/quotes_SOLUSD_20250718
["timestamp","ask_amount","ask_price","bid_price","bid_amount"]
[1752803785369,36.73590785,180.64,180.6,0.68]
[1752803785657,48.8802582,180.64,180.6,0.68]
[1752803785871,12.14435035,180.62,180.6,0.68]
[1752803786037,5.53709856,180.6,180.58,0.2]
[1752803786456,17.68144891,180.6,180.58,0.2]
[1752803786850,5.53709856,180.6,180.58,0.2]
[1752803788065,17.68119289,180.61,180.58,0.2]
[1752803788360,12.14435035,180.67,180.6,12.14435035]
[1752803788654,5.53429143,180.7,180.59,12.14435035]
[1752803788655,12.14435035,180.64,180.59,12.14435035]
[1752803788864,43.34435035,180.64,180.58,26.2]
[1752803789038,12.14435035,180.63,180.58,0.2]
[1752803789243,12.14435035,180.62,180.58,0.2]
[1752803789753,12.84435035,180.62,180.58,0.2]
[1752803790059,31.9,180.61,180.58,0.2]
[1752803790262,44.04435035,180.61,180.58,0.2]
[1752803790463,43.34435035,180.61,180.58,0.2]
[1752803790648,0.7,180.6,180.58,0.2]
[1752803790850,0.7,180.6,180.59,3.98451236]
[1752803791155,12.84435035,180.6,180.59,3.98451236]
[1752803791644,12.84435035,180.6,180.58,0.2]
[1752803791850,3.47506212,180.6,180.58,0.2]
[1752803792539,31.2,180.61,180.58,0.2]
[1752803792738,5.53654661,180.62,180.58,0.2]
[1752803792938,43.32435035,180.61,180.58,0.2]
[1752803793338,12.14435035,180.6,180.58,0.2]
[1752803793769,31.18,180.61,180.58,0.2]
[1752803793770,12.14435035,180.59,180.58,0.2]
[1752803794360,0.7,180.6,180.58,0.2]
[1752803794361,12.84435035,180.6,180.58,0.2]
[1752803794557,0.7,180.6,180.58,0.2]
[1752803794748,12.14435035,180.59,180.58,0.2]
[1752803794958,43.32435035,180.61,180.58,0.2]
[1752803795358,31.18,180.61,180.58,0.2]
[1752803795537,31.18,180.6,180.58,0.2]
[1752803795745,43.32435035,180.6,180.58,0.2]
[1752803796969,44.02435035,180.6,180.58,0.2]
[1752803797171,12.84435035,180.6,180.58,0.2]
[1752803797368,31.18,180.59,180.58,0.2]
[1752803797565,31.18,180.59,180.58,4.07482457]
[1752803797968,31.18,180.59,180.58,0.2]
[1752803798553,43.32435035,180.59,180.58,0.2]
[1752803798968,38.63317842,180.59,180.58,0.2]
[1752803799169,39.33317842,180.59,180.58,0.2]
[1752803800260,44.87058359,180.59,180.58,0.2]
[1752803800462,61.65526756,180.59,180.58,0.2]
[1752803802070,37.41740517,180.59,180.58,0.2]
[1752803802266,44.87058359,180.59,180.58,0.2]
[1752803802584,13.69058359,180.59,180.58,0.2]
[1752803802789,38.63317842,180.59,180.58,0.2]
[1752803803170,7.45317842,180.59,180.58,0.2]
[1752803803685,31.16,180.59,180.58,8.33317842]
[1752803804182,31.16,180.59,180.58,0.88]
[1752803804399,31.16,180.59,180.58,0.2]
[1752803805562,0.06,180.63,180.59,10.1071]
[1752803805765,0.06,180.63,180.62,7.45317842]
[1752803806072,0.06,180.63,180.62,11.32521025]
[1752803806275,0.06,180.63,180.62,12.00521025]
[1752803806666,0.06,180.63,180.62,17.54169568]
[1752803807861,0.06,180.63,180.62,17.54179268]
[1752803808183,0.06,180.63,180.62,30.55212883]
[1752803808357,0.06,180.63,180.62,29.87212883]
[1752803808962,0.06,180.63,180.62,26.0]
[1752803809185,0.06,180.63,180.62,29.87461359]
[1752803809366,0.06,180.63,180.62,3.87461359]
[1752803810401,0.06,180.63,180.6,39.67017155]
[1752803810569,0.06,180.63,180.61,0.68]
[1752803811097,0.06,180.63,180.61,13.66989171]
[1752803811392,0.06,180.63,180.62,8.13317842]
[1752803812365,0.06,180.63,180.62,13.66966385]
[1752803812974,0.06,180.63,180.62,18.34702587]
[1752803813767,0.06,180.63,180.62,64.29516631]
[1752803814175,0.06,180.63,180.62,52.16462587]
[1752803815064,0.06,180.63,180.62,64.29516631]
[1752803817279,0.06,180.63,180.62,40.03408543]
[1752803817482,0.06,180.63,180.62,64.29516631]
[1752803817977,0.06,180.63,180.62,153.09516631]
[1752803818183,0.06,180.63,180.62,140.96462587]
[1752803818387,0.06,180.63,180.62,153.09516631]
[1752803820202,0.06,180.63,180.62,140.96462587]
[1752803821282,0.06,180.63,180.62,153.09516631]
[1752803821677,0.06,180.63,180.62,156.97921791]
[1752803822283,0.06,180.67,180.66,26.0]
[1752803822481,0.06,180.67,180.66,172.66509204]
[1752803822788,0.06,180.67,180.66,178.92035164]
[1752803824375,0.06,180.67,180.66,178.84632883]
[1752803826517,0.06,180.67,180.66,186.38167921]
[1752803827218,0.06,180.67,180.66,186.38204299]
[1752803827605,1e-08,180.67,180.66,203.16672696]
[1752803827915,0.06,180.71,180.7,26.0]
[1752803828090,0.06,180.71,180.7,164.43533301]
[1752803828290,0.06,180.71,180.7,181.94001698]
[1752803828824,0.06,180.71,180.7,169.80947654]
[1752803829107,0.06,180.71,180.7,181.94001698]
[1752803829313,0.06,180.71,180.7,181.93514205]
[1752803829724,0.668627,180.78,180.7,187.46917636]
[1752803829907,0.668627,180.78,180.71,3.80551764]
[1752803830109,0.668627,180.78,180.72,34.88551764]
[1752803830298,6.20024978,180.78,180.73,3.80551764]
[1752803830502,5.53162278,180.78,180.74,15.93605808]
[1752803830703,5.53162278,180.78,180.75,12.13054044]
[1752803831216,5.53162278,180.78,180.74,12.13054044]
[1752803831400,5.53162278,180.78,180.75,12.13054044]
[1752803831809,0.67,180.77,180.75,12.13054044]
[1752803832114,5.53097345,180.8,180.72,88.74]
[1752803832287,0.67,180.76,180.75,12.13054044]
[1752803832491,0.67,180.76,180.72,88.74]
[1752803832688,12.13054044,180.79,180.74,12.13054044]
[1752803832924,0.67,180.75,180.73,12.13054044]
[1752803833822,12.13054044,180.76,180.71,89.46]
[1752803834002,12.13054044,180.76,180.71,101.59054044]
[1752803834201,0.67,180.75,180.71,100.87054044]
[1752803834423,12.13054044,180.76,180.71,100.87054044]
[1752803834625,0.67,180.74,180.71,100.87054044]
[1752803834919,0.67,180.74,180.71,7.43874427]
[1752803835902,6.20302517,180.74,180.69,114.74]
[1752803836098,6.20302517,180.74,180.7,11.23964601]
[1752803836310,6.20302517,180.74,180.71,3.80090174]
[1752803836693,0.67,180.73,180.71,3.80090174]
[1752803837505,0.67,180.73,180.69,122.89874427]
[1752803837714,0.67,180.73,180.7,3.80130525]
[1752803838222,6.20316607,180.73,180.7,3.80130525]
[1752803838404,8.10874427,180.72,180.7,3.80130525]
[1752803838606,7.43874427,180.72,180.69,88.74]
[1752803838812,0.67,180.71,180.69,88.74]
[1752803839540,0.67,180.71,180.66,26.72]
[1752803839541,7.43874427,180.71,180.66,96.17874427]
[1752803839708,7.43874427,180.69,180.67,3.80284197]
[1752803840022,2.5178,180.74,180.66,88.74]
[1752803840325,6.20311569,180.73,180.69,7.43874427]
[1752803840620,0.67,180.72,180.67,8.15874427]
[1752803840828,0.67,180.72,180.68,3.80368649]
[1752803841000,0.67,180.72,180.68,4.52368649]
[1752803841200,0.67,180.72,180.69,3.80368649]
[1752803842023,6.20363678,180.72,180.67,7.43874427]
[1752803842327,6.20363678,180.72,180.68,3.80462261]
[1752803842812,6.20363678,180.72,180.69,3.80462261]
[1752803843016,6.20363678,180.72,180.67,8.15874427]
[1752803843227,6.20363678,180.72,180.68,3.80536466]
[1752803843435,6.20363678,180.72,180.69,3.80536466]
[1752803843632,6.20363678,180.72,180.67,8.15874427]
[1752803843920,6.20363678,180.72,180.68,3.8062322]
[1752803844103,6.20363678,180.72,180.69,3.8062322]
[1752803844302,6.20363678,180.72,180.7,3.80658299]
[1752803844518,6.20363678,180.72,180.67,8.15874427]
[1752803844519,6.20363678,180.72,180.67,96.89874427]
[1752803844743,6.20363678,180.72,180.68,3.80762154]
[1752803844912,6.20363678,180.72,180.69,3.80762154]
[1752803845324,6.20363678,180.72,180.7,3.80762154]
[1752803845525,6.20363678,180.72,180.68,7.43874427]
[1752803845726,6.20363678,180.72,180.69,3.80935063]
[1752803845905,6.20363678,180.72,180.7,3.80935063]
[1752803846232,13.64238105,180.72,180.67,96.89874427]
[1752803846428,0.67,180.71,180.68,3.81009466]
[1752803846726,0.67,180.7,180.69,3.81009466]
[1752803846922,0.67,180.71,180.69,3.81009466]
[1752803847242,0.67,180.71,180.67,96.17874427]
[1752803847408,5.53372807,180.71,180.68,3.8147242]
[1752803847609,5.53372807,180.71,180.69,3.8147242]
[1752803847815,5.53372807,180.71,180.7,3.8147242]
[1752803848024,6.20372807,180.71,180.7,3.8147242]
[1752803848611,6.20372807,180.71,180.62,7.46874427]
[1752803848810,13.64247234,180.71,180.65,7.43874427]
[1752803849022,13.64247234,180.71,180.66,3.81849687]
[1752803849232,5.53372807,180.71,180.67,3.81849687]
[1752803849406,5.53372807,180.71,180.68,3.81849687]
[1752803849610,5.53372807,180.71,180.69,3.81849687]
[1752803849830,5.53372807,180.71,180.7,3.81849687]
[1752803850332,6.20351046,180.72,180.7,3.81849687]
[1752803850535,8.10874427,180.71,180.66,7.43874427]
[1752803850722,8.10874427,180.71,180.67,3.82204855]
[1752803851026,0.67,180.7,180.68,3.82204855]
[1752803851331,6.20351046,180.72,180.69,3.82204855]
[1752803851533,0.67,180.71,180.7,3.82204855]
[1752803852136,0.67,180.71,180.66,8.10874427]
[1752803852314,0.67,180.7,180.66,8.10874427]
[1752803852731,5.5342575,180.7,180.66,8.10874427]
[1752803853729,5.9642575,180.7,180.66,8.10874427]
[1752803853908,5.9642575,180.7,180.66,0.67]
[1752803854329,5.9642575,180.7,180.66,8.10874427]
[1752803854625,5.96347866,180.72,180.67,8.10874427]
[1752803854928,7.86874427,180.71,180.66,7.43874427]
[1752803855234,0.43,180.7,180.66,8.10874427]
[1752803855621,0.43,180.7,180.66,0.67]
[1752803855808,5.96347866,180.72,180.67,8.10874427]
[1752803856012,0.43,180.71,180.67,0.67]
[1752803856417,5.96400745,180.71,180.67,0.67]
[1752803857432,5.53400745,180.71,180.68,8.10874427]
[1752803857633,5.53345889,180.72,180.69,0.67]
[1752803857943,5.53318794,180.73,180.68,7.43874427]
[1752803858316,5.96318794,180.73,180.69,0.67]
[1752803858543,0.43,180.72,180.68,7.43874427]
[1752803858710,7.86874427,180.72,180.68,0.67]
[1752803859426,8.10874427,180.71,180.66,96.87874427]
[1752803859630,7.43874427,180.72,180.67,0.67]
[1752803859830,7.43874427,180.72,180.66,96.20874427]
[1752803860008,8.10874427,180.72,180.68,0.67]
[1752803860406,7.43874427,180.72,180.68,0.67]
[1752803860611,12.97217451,180.72,180.68,0.67]
[1752803861625,7.43874427,180.72,180.68,0.67]
[1752803862208,0.67,180.73,180.67,7.43874427]
[1752803862512,12.97164555,180.74,180.69,0.67]
[1752803862920,0.67,180.73,180.69,0.67]
[1752803863620,12.97164555,180.74,180.7,0.67]
[1752803863818,13.64164555,180.74,180.7,0.67]
[1752803864009,5.53219738,180.76,180.7,0.67]
[1752803864210,8.10874427,180.75,180.7,0.67]
[1752803864533,6.20296002,180.74,180.7,0.67]
[1752803866129,7.43874427,180.73,180.69,88.74]
[1752803866324,0.67,180.73,180.69,96.84874427]
[1752803866524,5.53296002,180.74,180.69,96.84874427]
[1752803866716,13.64170429,180.74,180.69,96.84874427]
[1752803867026,12.97170429,180.74,180.69,96.84874427]
[1752803867225,0.67,180.73,180.69,96.84874427]
[1752803868251,8.10874427,180.73,180.69,88.74]
[1752803869328,13.64190894,180.73,180.69,88.74]
[1752803869528,6.20316467,180.73,180.69,96.84874427]
[1752803869718,5.53316467,180.73,180.69,96.17874427]
[1752803869918,12.97161293,180.74,180.7,0.67]
[1752803870118,13.64161293,180.74,180.7,0.67]
[1752803871327,5.53316474,180.73,180.7,0.67]
[1752803871540,5.53285049,180.74,180.71,0.67]
[1752803871738,5.53285049,180.74,180.72,0.67]
[1752803871922,5.53285049,180.74,180.7,0.67]
[1752803872122,0.06,180.78,180.73,7.43874427]
[1752803872351,7.49874427,180.78,180.72,7.43874427]
[1752803872525,8.10874427,180.77,180.71,8.10874427]
[1752803872841,8.10874427,180.77,180.72,8.10874427]
[1752803873042,8.10874427,180.77,180.72,7.43874427]
[1752803873247,8.10874427,180.77,180.73,0.67]
[1752803873420,5.53219738,180.76,180.73,0.67]
[1752803874127,0.06,180.78,180.73,8.10874427]
[1752803874323,5.59163795,180.78,180.74,0.67]
[1752803874527,5.59163795,180.78,180.75,0.67]
[1752803874765,5.59163795,180.78,180.73,7.43874427]
[1752803874941,13.69038222,180.78,180.74,0.72]
[1752803875246,5.59163795,180.78,180.74,0.72]
[1752803875449,5.59163795,180.78,180.75,0.72]
[1752803876451,0.06,180.78,180.75,0.72]
[1752803876829,0.72,180.78,180.73,0.72]
[1752803877039,0.72,180.78,180.74,8.15874427]
[1752803877326,0.06,180.78,180.77,56.55561]
[1752803877833,8.15874427,180.78,180.77,56.55561]
[1752803878531,13.69032962,180.78,180.77,56.55561]
[1752803878846,30.47501359,180.78,180.77,56.55561]
[1752803879825,30.47501359,180.78,180.77,28.37194192]
[1752803882343,23.03626932,180.78,180.77,28.37194192]
[1752803882653,30.47501359,180.78,180.77,28.37194192]
[1752803883058,61.39501359,180.78,180.77,0.68032625]
[1752803883429,16.78468397,180.77,180.68,0.72]
[1752803883629,7.43874427,180.71,180.69,3.93521342]
[1752803883862,38.33874427,180.71,180.7,3.93521342]
[1752803884332,38.77874427,180.71,180.7,3.93521342]
[1752803884652,31.34,180.71,180.7,3.93521342]
[1752803884858,38.77874427,180.71,180.7,3.93521342]
[1752803885046,44.31247234,180.71,180.7,3.93521342]
[1752803887556,74.93147649,180.71,180.66,0.03]
[1752803887732,7.43874427,180.67,180.66,0.03]
[1752803887931,7.43874427,180.67,180.66,1e-08]
[1752803887932,55.12342824,180.67,180.66,1e-08]
[1752803888145,55.56342824,180.67,180.66,1e-08]
[1752803888933,48.12468397,180.67,180.66,1e-08]
[1752803889138,55.56342824,180.67,180.66,1e-08]
[1752803889462,24.66342824,180.67,180.66,1e-08]
[1752803889628,61.09838146,180.67,180.66,1e-08]
[1752803889833,53.65963719,180.67,180.66,1e-08]
[1752803890040,61.09838146,180.67,180.66,1e-08]
[1752803891561,30.9,180.67,180.66,0.72000001]
[1752803891746,36.43495322,180.67,180.66,0.72000001]
[1752803892057,36.43495322,180.67,180.66,1e-08]
[1752803892659,30.9,180.67,180.66,1e-08]
[1752803892840,30.9,180.67,180.66,0.72000001]
[1752803894156,36.43495322,180.67,180.66,1e-08]
[1752803894362,30.9,180.67,180.66,1e-08]
[1752803894658,30.9,180.67,180.66,0.72000001]
[1752803895855,30.88,180.69,180.66,0.72000001]
[1752803896232,0.66,180.72,180.66,8.15874428]
[1752803896438,13.8315439,180.75,180.66,8.15874428]
[1752803896439,30.88,180.71,180.67,8.15874427]
[1752803896660,30.88,180.71,180.68,0.72]
[1752803896853,30.88,180.71,180.69,0.72]
[1752803898640,5.53219738,180.76,180.7,0.72]
[1752803898847,5.53219738,180.76,180.7,8.15874427]
[1752803899048,30.88,180.75,180.71,0.72]
[1752803899256,30.88,180.75,180.72,0.72]
[1752803899844,36.41257225,180.75,180.72,0.72]
[1752803900243,0.06,180.78,180.74,7.43874427]
[1752803900444,0.06,180.78,180.72,6.25336908]
[1752803900445,0.06,180.78,180.75,8.15874427]
[1752803900653,0.06,180.78,180.76,7.43874427]
[1752803900861,0.06,180.78,180.77,7.43874427]
[1752803901157,0.06,180.78,180.77,8.15874427]
[1752803901354,0.06,180.78,180.77,10.90724427]
[1752803901848,0.06,180.78,180.77,27.30553562]
[1752803902658,0.06,180.78,180.77,14.3349]
[1752803902867,0.06,180.78,180.77,11.5864]
[1752803903062,0.06,180.78,180.77,10.8664]
[1752803903266,0.06,180.78,180.74,146.32]
[1752803903454,7.49874427,180.78,180.74,0.72]
[1752803903762,13.03041796,180.78,180.74,0.72]
[1752803904273,5.59167369,180.78,180.75,0.72]
[1752803904643,5.59167369,180.78,180.76,0.69]
[1752803904966,8.15874427,180.77,180.72,11.4747]
[1752803905151,7.43874427,180.76,180.72,11.4747]
[1752803905955,5.53250345,180.75,180.72,11.4747]
[1752803907550,12.97094165,180.76,180.72,11.4747]
[1752803907949,5.53219738,180.76,180.72,11.4747]
[1752803908142,12.97094165,180.76,180.72,11.4747]
[1752803908361,5.53219738,180.76,180.73,0.69]
[1752803908560,5.53219738,180.76,180.74,0.69]
[1752803908846,12.97094165,180.76,180.74,0.69]
[1752803909044,0.06,180.78,180.75,0.69]
[1752803909268,7.49874427,180.78,180.75,0.69]
[1752803909455,0.06,180.78,180.76,0.69]
[1752803909655,0.06,180.78,180.75,88.74]
[1752803909854,0.06,180.78,180.77,0.69]
[1752803911669,0.06,180.78,180.77,6.22189135]
[1752803911859,0.06,180.78,180.77,102.40063562]
[1752803912871,0.06,180.78,180.77,94.96189135]
[1752803913252,0.06,180.78,180.77,102.40063562]
[1752803913656,0.06,180.78,180.77,94.96189135]
[1752803913885,0.06,180.78,180.77,102.40063562]
[1752803914977,0.06,180.78,180.77,94.96189135]
[1752803915460,0.06,180.78,180.77,102.40063562]
[1752803915660,0.06,180.82,180.78,88.68]
[1752803915862,0.06,180.82,180.81,7.43874427]
[1752803916082,0.06,180.86,180.82,16.78468397]
[1752803916288,0.06,180.86,180.85,7.43874427]
[1752803916461,0.06,180.86,180.85,38.23874427]
[1752803916665,0.06,180.86,180.85,49.80464427]
[1752803917361,0.06,180.86,180.85,155.26932824]
[1752803917760,0.06,180.86,180.85,160.79877253]
[1752803917961,0.06,180.86,180.85,163.35727253]
[1752803918563,0.06,180.86,180.85,169.99762445]
[1752803919560,0.06,180.86,180.85,162.55888018]
[1752803919784,0.06,180.86,180.85,169.99762445]
[1752803920161,5.52547242,180.98,180.89,16.78468397]
[1752803920475,7.43874427,180.97,180.92,7.43874427]
[1752803920663,5.52547242,180.98,180.93,0.69]
[1752803920862,5.52547242,180.98,180.94,0.69]
[1752803920863,7.43874427,180.97,180.94,0.69]
[1752803921180,7.43874427,180.97,180.95,0.69]
[1752803921482,0.72,180.98,180.92,0.69]
[1752803921689,0.72,180.99,180.92,0.69]
[1752803921991,6.24546424,180.99,180.92,0.69]
[1752803922167,7.43874427,180.96,180.92,0.69]
[1752803922374,19.33838208,180.99,180.9,7.43874427]
[1752803922375,7.43874427,180.95,180.9,7.43874427]
[1752803922569,7.43874427,180.94,180.89,30.78]
[1752803922775,7.43874427,180.93,180.89,57.47]
[1752803922985,7.43874427,180.93,180.89,29.50688185]
[1752803923178,7.43874427,180.9,180.86,0.69]
[1752803923385,0.72,180.9,180.85,41.6359]
[1752803923563,8.15874427,180.9,180.85,49.76464427]
[1752803923768,0.72,180.9,180.85,49.76464427]
[1752803924075,6.24796694,180.9,180.86,0.69]
[1752803924280,13.68671121,180.9,180.86,0.69]
[1752803924579,5.52796694,180.9,180.86,0.69]
[1752803925260,12.96671121,180.9,180.86,0.69]
[1752803925691,12.96671121,180.9,180.84,0.69]
[1752803925692,8.15874427,180.89,180.84,0.69]
[1752803925875,8.15874427,180.89,180.84,8.12874427]
[1752803926198,5.5285272,180.88,180.84,8.12874427]
[1752803926359,5.5285272,180.88,180.85,8.12874427]
[1752803926558,5.5285272,180.88,180.85,96.80874427]
[1752803926784,5.5285272,180.88,180.85,88.68]
[1752803927892,5.5285272,180.88,180.85,89.37]
[1752803928100,5.52822157,180.89,180.85,89.37]
[1752803929685,5.52822157,180.89,180.85,96.80874427]
[1752803929995,0.06,180.92,180.85,88.68]
[1752803930196,0.06,180.92,180.89,7.43874427]
[1752803930491,0.06,180.92,180.86,89.37]
[1752803930686,0.06,180.92,180.89,7.43874427]
[1752803930866,0.06,180.92,180.9,7.43874427]
[1752803931062,0.06,180.92,180.91,7.43874427]
[1752803931376,0.06,180.92,180.91,8.12874427]
[1752803932792,0.06,180.92,180.91,0.69]
[1752803932964,0.06,180.92,180.91,8.12874427]
[1752803933167,0.06,180.92,180.91,94.89761041]
[1752803933368,0.06,180.92,180.91,120.09]
[1752803933590,0.06,180.92,180.91,88.68]
[1752803933792,0.06,180.92,180.89,10.6211]
[1752803933994,0.06,180.92,180.88,33.43874427]
[1752803934196,0.06,180.92,180.91,7.43874427]
[1752803934601,0.06,180.92,180.91,8.12874427]
[1752803935568,0.06,180.92,180.91,0.69]
[1752803936174,0.06,180.92,180.9,7.43874427]
[1752803936380,0.06,180.92,180.89,7.43874427]
[1752803936593,0.06,180.92,180.89,0.69]
[1752803936794,0.06,180.92,180.89,89.37]
[1752803936995,0.06,180.92,180.9,0.69]
[1752803937200,0.06,180.92,180.89,96.11874427]
[1752803937411,0.06,180.92,180.89,96.80874427]
[1752803937591,0.06,180.92,180.9,8.12874427]
[1752803937788,0.06,180.92,180.9,0.69]
[1752803938507,0.06,180.92,180.89,88.68]
[1752803939582,0.06,180.92,180.89,89.37]
[1752803939905,0.06,180.92,180.91,7.43874427]
[1752803940396,0.06,180.92,180.91,0.69]
[1752803940594,0.06,180.92,180.91,96.80874427]
[1752803941393,0.06,180.92,180.91,89.37]
[1752803941805,0.06,180.92,180.91,96.80874427]
[1752803942007,0.06,180.92,180.91,89.37]
[1752803942418,0.06,180.92,180.91,88.68]
[1752803943113,0.06,180.92,180.91,96.80874427]
[1752803943534,0.06,180.92,180.91,127.48874427]
[1752803943826,0.06,180.92,180.91,155.22022824]
[1752803944230,0.06,180.92,180.91,179.30909438]
[1752803944534,0.06,180.92,180.91,186.74783865]
[1752803945819,0.06,180.92,180.91,173.78148397]
[1752803946223,0.06,180.92,180.91,181.22022824]
[1752803946632,0.06,180.92,180.91,156.9968]
[1752803946832,0.06,180.92,180.91,164.43554427]
[1752803947024,0.06,180.92,180.91,126.3168]
[1752803947215,0.06,180.92,180.91,138.4111146]
[1752803947415,0.06,180.92,180.91,126.3168]
[1752803947616,0.06,180.92,180.91,138.4111146]
[1752803948016,0.06,180.92,180.91,126.3168]
[1752803948217,0.06,180.92,180.91,138.4111146]
[1752803948737,0.06,180.92,180.91,115.37]
[1752803948919,0.06,180.92,180.91,127.4643146]
[1752803949119,0.06,180.92,180.91,114.68]
[1752803950038,0.06,180.92,180.91,115.37]
[1752803950346,0.06,180.92,180.91,127.4643146]
[1752803950634,0.06,180.92,180.91,114.68]
[1752803954535,0.06,180.92,180.91,126.7743146]
[1752803954749,0.06,180.92,180.91,114.68]
[1752803955731,0.06,180.92,180.91,88.68]
[1752803955732,0.78,180.92,180.91,88.68]
[1752803956030,0.78,180.92,180.88,88.68]
[1752803956434,0.06,180.92,180.88,89.37]
[1752803956644,12.0943146,180.9,180.87,88.68]
[1752803956862,12.0943146,180.89,180.87,88.68]
[1752803957160,12.0943146,180.88,180.85,0.03]
[1752803957659,6.24889633,180.87,180.85,0.03]
[1752803958152,5.52859975,180.88,180.85,0.03]
[1752803958330,12.0943146,180.87,180.85,0.03]
[1752803958645,12.8143146,180.87,180.85,0.03]
[1752803959039,12.0943146,180.86,180.85,26.03]
[1752803959347,17.62291435,180.88,180.85,26.03]
[1752803959555,0.72,180.87,180.85,26.03]
[1752803959845,18.34291435,180.88,180.85,26.03]
[1752803960548,6.24859975,180.88,180.85,26.03]
[1752803960725,18.34291435,180.88,180.85,26.03]
[1752803960922,6.24859975,180.88,180.85,26.03]
[1752803961148,18.34291435,180.88,180.85,26.03]
[1752803961352,6.24859975,180.88,180.85,26.03]
[1752803961540,18.34291435,180.88,180.85,26.03]
[1752803962052,6.24761041,180.91,180.85,26.72]
[1752803962346,12.0943146,180.89,180.85,115.4]
[1752803962530,12.8143146,180.88,180.85,88.71]
[1752803962739,0.72,180.87,180.85,88.71]
[1752803962937,0.72,180.87,180.86,0.61]
[1752803963122,12.8143146,180.87,180.86,89.29]
[1752803963326,18.34314746,180.87,180.86,0.61]
[1752803964048,6.24883286,180.87,180.86,0.61]
[1752803964252,18.34314746,180.87,180.86,0.61]
[1752803964952,6.24883286,180.87,180.86,0.61]
[1752803965146,18.84314746,180.87,180.86,0.61]
[1752803965451,6.74883286,180.87,180.86,0.61]
[1752803965654,18.84314746,180.87,180.86,0.61]
[1752803966045,6.74883286,180.87,180.86,0.61]
[1752803966355,18.84314746,180.87,180.86,0.61]
[1752803967050,6.74883286,180.87,180.86,0.61]
[1752803967656,18.84314746,180.87,180.86,0.61]
[1752803969040,14.18144046,180.87,180.86,0.61]
[1752803969247,6.74883286,180.87,180.86,0.61]
[1752803969649,14.18144046,180.87,180.86,0.61]
[1752803970643,14.18144046,180.87,180.81,0.03]
[1752803970644,72.43237089,180.87,180.81,0.03]
[1752803970848,7.4326076,180.82,180.81,0.03]
[1752803971363,8.1226076,180.82,180.81,0.03]
[1752803972345,13.65296928,180.82,180.81,0.03]
[1752803975140,6.22036168,180.82,180.81,0.03]
[1752803975359,26.69,180.85,180.81,0.03]
[1752803975569,38.6126076,180.83,180.81,0.03]
[1752803976441,5.53022903,180.83,180.81,0.03]
[1752803976745,12.96283663,180.83,180.81,0.03]
[1752803977466,5.53022903,180.83,180.81,0.03]
[1752803977663,7.4326076,180.82,180.81,0.03]
[1752803977852,8.1226076,180.82,180.81,0.03]
[1752803978557,13.65296928,180.82,180.81,0.03]
[1752803979065,6.22036168,180.82,180.81,0.03]
[1752803979260,13.65296928,180.82,180.81,0.03]
[1752803980266,6.22036168,180.82,180.81,0.03]
[1752803980462,5.53036168,180.82,180.81,0.03]
[1752803980971,44.08296928,180.82,180.81,0.03]
[1752803981352,5.53002639,180.84,180.81,0.03]
[1752803981551,7.4326076,180.83,180.81,0.03]
[1752803981747,7.4326076,180.82,180.81,0.03]
[1752803982164,7.4326076,180.83,180.81,0.03]
[1752803982450,12.9629508,180.83,180.81,0.03]
[1752803982656,5.5303432,180.83,180.81,88.71]
[1752803982858,5.5303432,180.83,180.81,89.37]
[1752803983857,44.16236575,180.84,180.81,89.37]
[1752803985072,5.52944429,180.85,180.81,88.71]
[1752803985251,31.18,180.84,180.82,0.66]
[1752803986153,36.66985619,180.84,180.81,88.71]
[1752803986353,36.66985619,180.84,180.81,89.37]
[1752803986570,7.4326076,180.82,180.81,88.71]